[Event "1st Kallai Gabor Memorial 2022"]
[Site "Budapest"]
[Date "2022.11.30"]
[Round "7.1"]
[White "Beliavsky, Alexander G"]
[Black "Kozak, Adam"]
[Result "0-1"]
[ECO "E10"]
[WhiteElo "2487"]
[BlackElo "2538"]
[Annotator "TA"]
[PlyCount "142"]
[EventDate "2022.11.28"]
[EventCountry "HUN"]
[SourceTitle "playchess.com"]
[Source "ChessBase"]
[SourceQuality "1"]
[TimeControl "1500+5"]

{[%evp 20,142,0,0,0,0,0,0,0,0,0,0,7,0,0,0,0,0,0,0,0,0,354,0,6,0,8,0,4,5,18,10,8,0,0,-14,-11,-10,0,0,0,0,0,0,14,26,21,18,25,25,33,28,47,6,6,0,0,0,0,0,0,0,0,0,0,0,0,0,0,-12,-12,-12,-12,-12,-12,-12,-12,-12,-12,-33,0,-27,0,-33,-33,-33,-33,-183,-145,-295,-308,-529,-37,-583,-538,-835,-711,-711,-660,-587,-551,-2340,-2035,-3325,-3398,-3173,-2974,-2913,-2867,-2574,-600,-29975,-29975,-29974,-29976,-29976,-29976,-29977,-29978,-29978,-29979,-29979,-29980,-29980,-29980]} 1. d4 {[%emt 0:00:09]} Nf6 {[%emt 0:00:16]} 2. c4 {[%emt 0:00:03]} e6 {[%emt 0:00:02]} 3. Nf3 {[%emt 0:00:04]} d5 {[%emt 0:00:05]} 4. g3 {[%emt 0:00:02]} Bb4+ {[%emt 0:00:04]} 5. Bd2 {[%emt 0:00:03]} Be7 {[%emt 0:00:02]} 6. Bg2 {[%emt 0:00:02]} O-O {[%emt 0:00:03]} 7. O-O {[%emt 0:00:04]} Nbd7 {[%emt 0:00:03]} 8. Qc2 {[%emt 0:00:06]} c6 {[%emt 0:00:16]} 9. Rd1 {[%emt 0:00:05]} b6 {[%emt 0:00:06]} 10. Bf4 {[%emt 0:00:05]} Bb7 {[%emt 0:00:15]} 11. Ne5 {[%emt 0:01:06] The main line 11.Ne5 scores better than 11.Nc3.} Nh5 {[%emt 0:00:06] E08: Closed Catalan: Main Line: 7 Qc2.} 12. Bc1 {[%emt 0:01:15]} Nhf6 {[%emt 0:00:08]} 13. cxd5 {[%emt 0:00:16]} cxd5 {[%emt 0:00:01] The position is equal.} 14. Nc6 {[%emt 0:00:00]} Bxc6 {[%emt 0:00:02]} 15. Qxc6 Qb8 {[%emt 0:00:01]} 16. Qb5 {[%emt 0:01:02] [#]} a6 $146 {[%emt 0:00:11]} ({Predecessor:} 16... Rc8 17. Nc3 a6 18. Qd3 b5 19. Bf4 Qb7 20. e4 dxe4 21. Nxe4 Nd5 22. Bd6 N7b6 23. Nc5 Qa7 24. Bxe7 Qxe7 {½-½ (35) Schreiner,P (2487)-Sadilek,P (2244) Graz 2014}) 17. Qd3 {[%emt 0:00:18]} b5 {[%emt 0:00:22]} 18. a4 {[%emt 0:00:18]} Rc8 {[%emt 0:01:11]} 19. axb5 {[%emt 0:00:27]} Qxb5 {[%emt 0:00:03]} 20. Nc3 {[%emt 0:00:47]} Qb3 {[%emt 0:00:17][%mdl 8192] [#]} (20... Qxd3 $11 {and Black has nothing to worry.} 21. Rxd3 Bb4) 21. Na4 $2 {[%emt 0:00:47]} (21. Rxa6 $2 {perishes.} Rxa6 22. Qxa6 Rxc3 $19) (21. Nxd5 $1 $18 {[%mdl 512]} Qxd1+ 22. Qxd1 exd5 23. Bf4) 21... Qb5 $11 {[%emt 0:05:33]} 22. Bf1 {[%emt 0:00:21]} Qb7 {[%emt 0:03:54]} 23. Bf4 {[%emt 0:01:17]} Ne4 {[%emt 0:01:18]} 24. Rdc1 {[%emt 0:01:02]} g5 {[%emt 0:03:34]} 25. Be3 {[%emt 0:00:21]} Qb5 {[%emt 0:00:22]} 26. Qd1 {[%emt 0:01:15]} Nb6 {[%emt 0:01:14]} 27. Nxb6 {[%emt 0:01:32]} Qxb6 {[%emt 0:00:02]} 28. Ra2 {[%emt 0:00:02]} Nd6 {[%emt 0:01:31]} 29. Rxc8+ {[%emt 0:04:14]} Rxc8 {[%emt 0:00:02]} 30. Bc1 {[%emt 0:00:07]} Qc6 {[%emt 0:02:24]} 31. Ra1 {[%emt 0:00:10]} Qc2 {[%emt 0:00:33] Inhibits e3.} 32. Qxc2 {[%emt 0:00:10]} Rxc2 {[%emt 0:00:10]} 33. e3 {[%emt 0:00:01]} a5 {[%emt 0:01:15]} 34. Bd3 {[%emt 0:00:06]} Rc8 {[%emt 0:00:02]} 35. Bd2 {[%emt 0:00:15]} Bd8 {[%emt 0:00:01]} 36. Kf1 {[%emt 0:01:06][%cal Og3g4]} Rb8 {[%emt 0:00:51]} 37. Ra2 {[%emt 0:00:23]} g4 {[%emt 0:00:02]} 38. Ke2 {[%emt 0:00:05]} f5 {[%emt 0:00:29]} 39. Kd1 {[%emt 0:00:49]} Ne4 {[%emt 0:01:13]} 40. Be1 {[%emt 0:00:07]} Kf7 {[%emt 0:00:09]} 41. Kc2 {[%emt 0:00:18]} Ke7 {[%emt 0:00:10]} 42. b3 {[%emt 0:02:27]} h5 {[%emt 0:00:02]} 43. Kb2 {[%emt 0:00:36]} Kd7 {[%emt 0:00:07]} 44. Ka3 {[%emt 0:00:44]} Be7+ {[%emt 0:00:06]} 45. Kb2 {[%emt 0:00:38]} Bb4 {[%emt 0:00:01]} 46. Bxb4 {[%emt 0:00:05]} axb4 {[%emt 0:00:07]} 47. Bxe4 {[%emt 0:00:09]} fxe4 {[%emt 0:00:01][%mdl 4096] Endgame KR-KR} 48. Ra7+ {[%emt 0:00:06]} Kd6 {[%emt 0:00:02] [#] aiming for ...Rf8.} 49. Ra6+ {[%emt 0:01:06]} Kd7 {[%emt 0:00:03] And now ...Rf8 would win.} 50. Ra7+ $1 {[%emt 0:00:01]} Kd6 {[%emt 0:00:00] Threatens to win with ...Rf8.} (50... Kc6 $5 {[%cal Rb8f8]} 51. Rf7 Rc8 $15) 51. Ra6+ {[%emt 0:00:01]} Ke7 {[%emt 0:00:01]} 52. Ra7+ {[%emt 0:00:01]} Kf6 {[%emt 0:00:04]} 53. Rc7 {[%emt 0:00:23] White is now going downhill.} (53. Kc1 $15) 53... h4 {[%emt 0:00:24][%cal Bh5h4,Bh4h3][%mdl 32]} 54. Rc2 {[%emt 0:00:05]} ({Of course not} 54. gxh4 Rh8 55. Kc2 Rxh4 $19) (54. Kc1 $17) 54... h3 $19 {[%emt 0:00:08] ...e5 is the strong threat.} 55. Kb1 $2 {[%emt 0:00:08]} (55. Rc6 Rf8 56. Rc7) 55... Ke7 $2 {[%emt 0:00:03]} (55... Rf8 $19 56. Rc6 Ke7 57. Rc7+ Kd6) 56. Kb2 $2 {[%emt 0:00:16][%mdl 8192]} ({White must play} 56. Rc7+ $1 $15 Kf6 57. Kc2) 56... Kd6 {[%emt 0:00:01] Strongly threatening ...e5.} 57. Kb1 {[%emt 0:00:17]} Rf8 {[%emt 0:00:03]} 58. Kc1 {[%emt 0:00:04]} e5 {[%emt 0:00:11]} 59. dxe5+ {[%emt 0:00:06]} Kxe5 {[%emt 0:00:01]} 60. Kb2 {[%emt 0:00:22]} d4 {[%emt 0:00:10]} 61. exd4+ {[%emt 0:00:03]} Kxd4 {[%emt 0:00:01] ( -> ...Kd3)} 62. Rd2+ {[%emt 0:00:04]} Ke5 {[%emt 0:00:03]} 63. Rc2 {[%emt 0:00:14]} Rf3 {[%emt 0:00:04]} 64. Re2 {[%emt 0:00:36]} Kd4 {[%emt 0:00:10]} (64... e3 $142 65. fxe3 Ke4) 65. Rc2 {[%emt 0:00:12]} Kd3 {[%emt 0:00:06] Against Rd2+. Black mates.} 66. Kc1 {[%emt 0:00:27]} e3 {[%emt 0:00:01]} 67. fxe3 {[%emt 0:00:02]} Rf1+ {[%emt 0:00:01]} 68. Kb2 {[%emt 0:00:01]} Kxe3 {[%emt 0:00:01]} 69. Rc4 {[%emt 0:00:12]} Rf2+ {[%emt 0:00:02]} 70. Kb1 {[%emt 0:00:13]} Rxh2 {[%emt 0:00:04]} 71. Rxg4 {[%emt 0:00:01]} Rg2 {[%emt 0:00:02] Weighted Error Value: White=0.52/Black=0.33} 0-1

[Event "1st Kallai Gabor Memorial 2022"]
[Site "Budapest"]
[Date "2022.11.30"]
[Round "7.2"]
[White "Horvath, Csaba"]
[Black "Berkes, Ferenc"]
[Result "0-1"]
[ECO "D11"]
[WhiteElo "2502"]
[BlackElo "2643"]
[Annotator "TA"]
[PlyCount "86"]
[EventDate "2022.11.28"]
[EventCountry "HUN"]
[SourceTitle "playchess.com"]
[Source "ChessBase"]
[SourceQuality "1"]
[TimeControl "1500+5"]

{[%evp 9,86,25,33,0,0,0,0,0,3,0,0,0,25,10,18,30,23,18,22,17,22,0,0,0,0,0,11,12,18,0,6,0,1,0,0,0,0,0,0,0,13,0,17,0,0,0,21,4,14,0,45,0,40,43,76,79,65,0,0,0,0,0,28,39,31,0,0,-41,-56,-52,-62,-57,-30,-84,0,-191,-173,-709,-665]} 1. d4 {[%emt 0:00:08]} Nf6 {[%emt 0:00:13]} 2. Nf3 {[%emt 0:00:05]} d5 {[%emt 0:00:03]} 3. c4 {[%emt 0:00:09]} c6 {[%emt 0:00:02]} 4. e3 {[%emt 0:00:21]} a6 {[%emt 0:00:09]} 5. Bd3 {[%emt 0:00:29]} Bg4 {[%emt 0:00:08]} 6. Qb3 {[%emt 0:00:58] D11: Slav Defence: 3 Nf3 sidelines and 3...Nf6 4 e3 Bg4.} Bxf3 {[%emt 0:01:39]} 7. gxf3 {[%emt 0:00:29]} Qc7 {[%emt 0:00:17]} 8. Nc3 {[%emt 0:00:15][%cal Rc4d5] The position is equal.} e6 9. f4 {[%emt 0:01:58]} Nbd7 {[%emt 0:03:31]} 10. c5 {[%emt 0:01:07]} b6 {[%emt 0:01:01]} 11. cxb6 {[%emt 0:00:02] [#]} Qxb6 $146 {[%emt 0:00:03]} ({Predecessor:} 11... Nxb6 12. Bd2 Bd6 13. Rc1 O-O 14. Na4 Nxa4 15. Qxa4 Rfc8 16. b4 Ne4 17. Bxe4 dxe4 {0-1 (65) Sasikiran,K (2675)-Kazhgaleyev,M (2609) Doha 2006}) 12. Qxb6 {[%emt 0:00:17]} Nxb6 {[%emt 0:01:34]} 13. Bd2 {[%emt 0:00:51]} Nfd7 {[%cal Bf6d7,Bd7c5,Bc5a4,Ba4b2,Bb2c4][%mdl 32]} 14. Ne2 {[%emt 0:07:11]} c5 {[%emt 0:00:06]} 15. dxc5 {[%emt 0:00:03]} Nxc5 {[%emt 0:00:07]} 16. Bc2 {[%emt 0:00:02]} Be7 {[%emt 0:01:59]} 17. Bc3 {[%emt 0:00:25]} Bf6 {[%emt 0:00:06]} 18. Bxf6 {[%emt 0:02:09]} gxf6 {[%emt 0:00:02]} 19. b4 {[%emt 0:01:27]} Nca4 {[%emt 0:00:24]} 20. Bb3 {[%emt 0:01:04]} Ke7 {[%emt 0:01:24]} 21. Rc1 {[%emt 0:01:21] Hoping for Rc7+.} Rhc8 {[%emt 0:00:27] Inhibits Rc7+.} 22. Kd2 Nb2 {[%emt 0:03:46]} 23. Nd4 {[%emt 0:00:13]} N2c4+ {[%emt 0:00:22]} 24. Ke2 {[%emt 0:00:06]} (24. Kd3 {seems wilder.} a5 25. a3 Kd7 26. Rhg1) 24... Na3 {[%emt 0:01:42]} 25. Rhg1 {[%emt 0:01:23]} Nb5 {[%emt 0:00:08]} 26. Nc6+ {[%emt 0:00:21]} (26. f5 {simplifies} Rxc1 27. Rxc1 Nxd4+ 28. exd4 Kd6 29. Rc5) 26... Kd7 {[%emt 0:00:40]} 27. Na5 {[%emt 0:00:14]} Ke7 {[%emt 0:00:55]} 28. Kd3 {[%emt 0:00:37][%cal Of4f5]} Nd6 {[%emt 0:00:08]} 29. f3 {[%emt 0:00:16]} h5 {[%emt 0:03:10]} 30. Rc5 {[%emt 0:00:05]} (30. e4 {with more complications.} dxe4+ 31. fxe4 f5 32. e5) 30... Nd7 {[%emt 0:00:31] Pair of Knights!} 31. Rc6 {[%emt 0:00:04]} (31. Nc6+ {keeps more tension.} Kf8 32. Rc2 Nb6 33. e4) 31... Rxc6 {[%emt 0:01:11]} 32. Nxc6+ {[%emt 0:00:02]} Kf8 {[%emt 0:00:01]} 33. e4 {[%emt 0:00:20]} ({White should try} 33. Rc1 $14) 33... dxe4+ $11 {[%emt 0:00:02]} 34. fxe4 Rc8 {[%emt 0:00:07]} 35. Na5 {[%emt 0:00:18]} Rb8 {[%emt 0:01:00]} 36. a3 {[%emt 0:00:14]} Nb5 {[%emt 0:00:03]} 37. Ba4 {[%emt 0:00:28]} Nxa3 {[%emt 0:00:21]} 38. Bxd7 {[#] Threatens to win with Ra1.} Rd8 39. Ke3 {[%emt 0:00:40] aiming for Ba4.} Rxd7 {[%emt 0:00:10]} 40. Rc1 {[%emt 0:00:02] Prevents Nc2+.} Rd6 {[%emt 0:00:14]} 41. Rc7 {[%emt 0:00:32]} (41. Nc6 $11 {keeps the balance.}) 41... Rb6 {[%emt 0:00:19]} (41... Rd1 $17 42. Nb7 Re1+ 43. Kd3 Rb1) 42. Nc6 $2 {[%emt 0:01:01]} (42. Rc8+ $11 {and White is okay.} Kg7 43. Rc3) 42... Nc2+ $19 {[%emt 0:00:01]} 43. Kf3 $2 {[%emt 0:00:04] [#]} (43. Kd2 Nxb4 44. Rc8+ Kg7 45. Na5) 43... Rxc6 $1 {[%emt 0:00:02][%mdl 512] Weighted Error Value: White=0.39/Black=0.11 (very precise)} 0-1

[Event "1st Kallai Gabor Memorial 2022"]
[Site "Budapest"]
[Date "2022.11.30"]
[Round "7.3"]
[White "Borhy, Marcell"]
[Black "Motylev, Alexander"]
[Result "1/2-1/2"]
[ECO "D37"]
[WhiteElo "2407"]
[BlackElo "2628"]
[Annotator "TA"]
[PlyCount "36"]
[EventDate "2022.11.28"]
[EventCountry "HUN"]
[SourceTitle "playchess.com"]
[Source "ChessBase"]
[SourceQuality "1"]
[TimeControl "1500+5"]

{[%evp 23,36,32,25,23,40,0,0,0,0,0,0,0,0,0,46]} 1. Nf3 {[%emt 0:00:09]} d5 {[%emt 0:00:07]} 2. d4 {[%emt 0:00:02]} Nf6 {[%emt 0:00:09]} 3. c4 {[%emt 0:00:04]} e6 {[%emt 0:00:04]} 4. Nc3 {[%emt 0:00:03]} Nbd7 {[%emt 0:00:19]} 5. Bg5 {[%emt 0:00:06]} h6 {[%emt 0:00:31]} 6. Bh4 {[%emt 0:00:04]} c6 {[%emt 0:00:13]} 7. e3 {[%emt 0:00:06]} Be7 {[%emt 0:00:04]} 8. Bd3 {[%emt 0:00:49]} dxc4 {[%emt 0:00:06]} 9. Bxc4 {[%emt 0:00:03]} b5 {[%emt 0:00:01]} 10. Bd3 {[%emt 0:00:09]} Bb7 {[%emt 0:00:02]} 11. O-O {[%emt 0:00:12]} O-O {[%emt 0:00:02]} 12. Rc1 {[%emt 0:03:15]} Rc8 {[%emt 0:00:01]} 13. Qe2 {[%emt 0:00:52] D66: Queen's Gambit Declined: Classical: Main Line (7 Rc1 c6 8 Bd3).} b4 {[%emt 0:00:08]} 14. Ne4 {[%emt 0:00:07]} c5 {[%emt 0:03:30] The position is equal.} 15. Nxf6+ {[%emt 0:01:49]} Nxf6 {[%emt 0:01:29]} 16. dxc5 {[%emt 0:01:57]} Nd7 {[%emt 0:02:00] Against Ne5} 17. Bxe7 {[%emt 0:03:13]} Qxe7 {[%emt 0:00:02] [#]} 18. Ba6 $146 {[%emt 0:00:28]} ({Predecessor:} 18. c6 Rxc6 19. Rxc6 Bxc6 20. Rc1 Bxf3 21. Qxf3 Ne5 22. Qe4 Nxd3 23. Qxd3 Rd8 24. Qe2 {½-½ (31) Franke,H (2395)-Gaprindashvili,N (2485) Berlin West 1988}) 18... Bxa6 {[%emt 0:00:05] An interesting draw.   Weighted Error Value: White=0.08 (flawless) /Black=0.00 (flawless)} (18... Nxc5 $11 19. Bxb7 Qxb7) 1/2-1/2

[Event "1st Kallai Gabor Memorial 2022"]
[Site "Budapest"]
[Date "2022.11.30"]
[Round "7.4"]
[White "Gaal, Zsoka"]
[Black "Bjerre, Jonas Buhl"]
[Result "0-1"]
[ECO "A04"]
[WhiteElo "2286"]
[BlackElo "2622"]
[Annotator "TA"]
[PlyCount "100"]
[EventDate "2022.11.28"]
[EventCountry "HUN"]
[SourceTitle "playchess.com"]
[Source "ChessBase"]
[SourceQuality "1"]
[TimeControl "1500+5"]

{[%evp 14,100,32,35,29,33,38,12,24,18,18,0,32,-26,-20,-43,17,0,22,0,0,0,19,0,0,0,16,-14,6,4,13,8,14,0,0,0,0,0,8,0,21,21,52,41,27,0,0,0,0,0,0,0,0,0,0,-120,-113,-117,-127,-123,-86,-97,-89,-96,-103,-119,-113,-159,-141,-29962,-29961,-29964,-29964,-29971,-29972,-29975,-29976,-29976,-29977,-29976,-29977,-29981,-29982,-29983,-833,-29983,-29983,-29983,-29984]} 1. Nf3 {[%emt 0:00:08]} c5 {[%emt 0:00:10]} 2. c4 {[%emt 0:00:02]} Nc6 {[%emt 0:00:03]} 3. Nc3 {[%emt 0:00:02]} g6 {[%emt 0:00:03]} 4. e3 {[%emt 0:00:04]} Bg7 {[%emt 0:00:23]} 5. d4 {[%emt 0:00:18]} d6 {[%emt 0:00:01]} 6. d5 {[%emt 0:03:01]} Ne5 7. Nxe5 {[%emt 0:00:18]} Bxe5 {[%emt 0:00:04]} 8. Bd3 {[%emt 0:00:27]} e6 {[%emt 0:00:02] A35: Symmetrical English: 2 Nc3 Nc6 3 Nf3.} 9. e4 {[%emt 0:01:47]} exd5 {[%emt 0:00:01]} 10. cxd5 {[%emt 0:02:07]} (10. exd5 $5 {[%cal Re1g1]} Ne7 11. Bg5 $14) 10... a6 {[%emt 0:00:02] [#] The position is equal.} 11. a4 $146 {[%emt 0:00:08]} ({Predecessor:} 11. O-O) 11... Nf6 {[%emt 0:00:02]} 12. h3 {[%emt 0:00:55] Against Ng4} O-O {[%emt 0:00:36]} 13. O-O {[%emt 0:00:02]} (13. Bg5 $14) 13... Nh5 $11 {[%emt 0:01:46]} 14. Bh6 {[%emt 0:01:45] [#]} (14. Ne2 {keeps more tension.} Qh4 15. Bh6 Bxh3 16. f4) 14... Re8 {[%emt 0:05:02]} ({Black should try} 14... Nf4 $1 $15) 15. Qd2 {[%emt 0:02:29]} (15. f4 {is interesting.} Bd4+ 16. Kh2 Qh4 17. Qf3) 15... Bd7 {[%emt 0:01:25]} 16. Be2 {[%emt 0:01:39]} Nf6 {[%emt 0:00:37][%cal Ob7b5]} 17. Rfe1 {[%emt 0:02:16]} Qa5 {[%emt 0:03:48]} 18. Bf3 {[%emt 0:01:23]} Qb4 {[%emt 0:00:55]} 19. Bf4 {[%emt 0:02:09]} b5 {[%emt 0:02:00]} 20. axb5 {[%emt 0:01:25]} Bxb5 {[%emt 0:00:15]} 21. Bxe5 {[%emt 0:02:12]} Rxe5 {[%emt 0:00:03]} 22. g3 {[%emt 0:00:39]} Nd7 {[%emt 0:02:03][%cal Bf6d7,Bd7b6,Bb6c4,Bc4d2][%mdl 32]} 23. Bg2 {[%emt 0:00:23]} Ree8 {[%emt 0:01:08]} 24. f4 {[%emt 0:00:22]} Rab8 {[%emt 0:00:45]} 25. Kh2 {[%emt 0:00:34]} f6 {[%emt 0:01:09]} 26. h4 {[%emt 0:00:10]} Nb6 {[%emt 0:00:16]} 27. Qc2 {[%emt 0:00:10]} Bd7 {[%emt 0:00:52]} 28. Rxa6 {[%emt 0:00:08]} Nc4 {[%emt 0:00:06] Against b3} 29. Rb1 {[%emt 0:00:18]} (29. Re2 $5) 29... Bb5 {[%emt 0:01:23]} 30. Nxb5 {[%emt 0:00:03]} Qxb5 31. Qa4 {[%emt 0:00:07]} Qxa4 {[%emt 0:00:14]} 32. Rxa4 Nd2 {[%emt 0:00:07]} 33. Rd1 {[%emt 0:00:09]} Rxb2 {[%emt 0:00:01]} 34. Ra6 {[%emt 0:00:06]} (34. Kh3 $1 $11) 34... Nxe4 $17 {[%emt 0:00:11]} 35. Re1 {[%emt 0:00:03]} f5 $36 {[%emt 0:00:32][%cal Bf6f5,Bf5e4,Be4e3][%mdl 2080] Hoping for ...Rd2. White is under strong pressure.} 36. Kg1 {[%emt 0:00:01]} c4 {[%emt 0:00:24] aiming for ...c3. Black has more active pieces.} 37. Rc6 {[%emt 0:00:01]} Rc2 {[%emt 0:00:21]} (37... Rb3 $6 38. Bxe4 fxe4 39. Kf2 $15) 38. Bxe4 {[%emt 0:00:06]} Rxe4 {[%emt 0:00:18]} (38... fxe4 $6 39. Kf1 $11) 39. Rxe4 {[%emt 0:00:01]} fxe4 {[%emt 0:00:02]} 40. Rxd6 {[%mdl 4096] Endgame [#] KR-KR} (40. Kf1 $142) 40... c3 $1 {[%emt 0:00:03]} 41. Kf1 $2 {[%emt 0:00:24][%mdl 8192] Now White is beyond hope.} (41. Rc6 $17) 41... Rd2 {[%emt 0:00:25]} 42. Ke1 {[%emt 0:00:02]} e3 {[%emt 0:00:08]} 43. Rc6 {[%emt 0:00:06]} c2 {[%emt 0:00:03]} (43... Rxd5 44. Rxc3 Kg7 45. Rxe3 $14) 44. d6 {[%emt 0:00:01]} Kf7 {[%emt 0:00:10]} ({Not} 44... Rd1+ 45. Ke2 $16) 45. Rc7+ {[%emt 0:00:07]} Ke6 {[%emt 0:00:18]} 46. d7 {[%emt 0:00:05]} Ke7 {[%emt 0:00:00]} ({Inferior is} 46... Rxd7 47. Rxc2 Kf5 48. Ke2 $11) 47. f5 {[%emt 0:00:03]} gxf5 {[%emt 0:00:04]} ({Weaker is} 47... Rd1+ 48. Ke2 $11) 48. Rc3 {[%emt 0:00:02]} Rd1+ {[%emt 0:00:04]} 49. Ke2 {[%emt 0:00:02]} c1=Q {[%emt 0:00:03]} (49... c1=N+ $2 50. Kxd1 Na2 51. Rxe3+ Kd8 52. Ra3 $18) 50. Rxc1 {[%emt 0:00:01]} Rxc1 {[%emt 0:00:01] Weighted Error Value: White=0.23 (precise) /Black=0.26 (precise)} 0-1